[Event "Baku Open 2024"]
[Site "Baku"]
[Date "2024.07.04"]
[Round "6.30"]
[White "Wagh Suyog"]
[Black "Mammadova, Gulnar"]
[Result "1/2-1/2"]
[ECO "E05"]
[WhiteElo "2230"]
[BlackElo "2348"]
[Annotator "TA"]
[PlyCount "112"]
[EventDate "2024.06.29"]
[EventType "swiss"]
[EventCountry "AZE"]
[SourceTitle "playchess.com"]
[Source "ChessBase"]
[SourceQuality "1"]
[TimeControl "5400+30"]

{[%evp 15,112,25,14,10,17,9,0,8,12,4,8,2,4,4,8,6,7,0,6,0,0,0,0,-30,-24,-28,-27,-35,0,0,0,0,0,0,0,0,0,0,8,0,0,8,8,8,8,8,8,8,8,8,8,8,8,2,5,7,7,0,8,0,6,6,4,4,8,8,10,4,8,8,8,0,0,0,8,0,0,0,7,2,8,0,8,0,0,0,0,0,0,0,0,0,0,0,0,0,0,0,43]} 1. d4 {[%emt 0:00:53]} Nf6 {[%emt 0:00:09]} 2. c4 {[%emt 0:01:16]} e6 {[%emt 0:00:07]} 3. Nf3 {[%emt 0:00:51]} d5 {[%emt 0:00:10]} 4. g3 {[%emt 0:00:08]} Be7 {[%emt 0:00:14]} 5. Bg2 {[%emt 0:00:07]} O-O {[%emt 0:00:13]} 6. O-O {[%emt 0:00:04]} dxc4 {[%emt 0:00:13]} 7. Qc2 {[%emt 0:00:07]} a6 {[%emt 0:00:18]} 8. a4 {[%emt 0:00:05]} Bd7 {[%emt 0:00:15]} 9. Rd1 {[%emt 0:00:59][%cal Of3e5]} Bc6 {[%emt 0:01:27]} 10. Bg5 {[%emt 0:01:10]} b5 {[%emt 0:00:45]} 11. Bxf6 {[%emt 0:00:10]} Bxf6 {[%emt 0:00:06]} 12. Nc3 {[%emt 0:00:05]} Qe8 {[%emt 0:00:49]} 13. d5 {[%emt 0:08:19]} exd5 {[%emt 0:00:22]} 14. Nd4 $1 {[%emt 0:00:06]} Qe5 {[%emt 0:00:51]} 15. e4 {[%emt 0:00:08]} dxe4 {[%emt 0:02:59]} 16. Nxe4 {[%emt 0:00:46] Excellent horsemanship.} Ra7 {[%emt 0:04:45]} (16... bxa4 $2 17. Nxc6 Nxc6 18. Qxc4 $18 (18. Qxa4 Nd4 $14)) 17. axb5 {[%emt 0:08:48]} Bxe4 {[%emt 0:00:30]} 18. Bxe4 {[%emt 0:03:37]} g6 {[%emt 0:00:07]} 19. Ra5 {[%emt 0:56:31] [#] b6 is the strong threat.} Qc5 {[%emt 0:13:52]} 20. b4 $1 {[%emt 0:03:59]} Qxb4 {[%emt 0:04:45]} 21. Ra4 {[%emt 0:00:11][%cal Ba5a4,Ba4c4,Bc4c6][%mdl 32]} Qc5 {[%emt 0:07:00]} 22. Rxc4 {[%emt 0:01:58] The position is equal.} Qb6 {[%emt 0:05:42]} 23. bxa6 {[%emt 0:00:36]} Rxa6 {[%emt 0:04:27]} 24. Nc6 {[%emt 0:03:22]} Nxc6 {[%emt 0:06:27]} 25. Rxc6 {[%emt 0:00:04]} Qa5 {[%emt 0:01:53]} 26. Rxc7 {[%emt 0:00:22]} Qa4 {[%emt 0:01:20]} 27. Rdd7 {[%emt 0:03:57]} Qxc2 {[%emt 0:00:26]} 28. Bxc2 {[%emt 0:00:15]} Be5 {[%emt 0:01:53]} 29. Rb7 {[%emt 0:00:25]} Rd6 {[%emt 0:00:30]} 30. Re7 {[%emt 0:01:13]} Bd4 {[%emt 0:01:39]} 31. Kg2 {[%emt 0:02:36]} Rb6 {[%emt 0:04:40]} 32. Rxb6 {[%emt 0:01:18]} Bxb6 $11 {[%emt 0:00:02][%mdl 4096] Endgame. KRB-KRB} 33. Bb3 {[%emt 0:00:06]} g5 {[%emt 0:01:41]} 34. Rb7 {[%emt 0:00:34]} Bc5 {[%emt 0:00:52]} 35. Rc7 {[%emt 0:01:53]} Bb6 {[%emt 0:00:58]} 36. Rb7 {[%emt 0:00:08]} Bc5 {[%emt 0:00:08]} 37. Rc7 {[%emt 0:00:35]} Bb6 {[%emt 0:00:04]} 38. Rd7 {[%emt 0:00:06]} Kg7 {[%emt 0:01:01]} 39. Kf3 {[%emt 0:00:04]} h5 {[%emt 0:03:24]} 40. h3 {[%emt 0:00:22]} Bc5 {[%emt 0:00:46]} 41. Rc7 {[%emt 0:00:58]} Bb6 {[%emt 0:01:34]} 42. Rb7 {[%emt 0:00:05]} Bc5 {[%emt 0:00:14]} 43. Rb5 {[%emt 0:00:10]} Rc8 {[%emt 0:01:18]} 44. Rb7 {[%emt 0:00:05]} Rf8 {[%emt 0:00:03]} 45. Bc4 {[%emt 0:00:19]} Kf6 {[%emt 0:00:25]} 46. Rc7 {[%emt 0:00:26]} Bd4 {[%emt 0:05:15]} 47. Bb3 {[%emt 0:00:40]} Kg6 {[%emt 0:01:25]} 48. Rb7 {[%emt 0:01:21]} Kf6 {[%emt 0:01:58]} 49. Rd7 {[%emt 0:00:25]} Bc5 {[%emt 0:00:10]} 50. Bc4 {[%emt 0:00:06]} Be7 {[%emt 0:01:39]} 51. Rc7 {[%emt 0:02:06]} Rd8 {[%emt 0:01:12]} 52. Ke2 {[%emt 0:00:27]} h4 {[%emt 0:00:56]} 53. gxh4 {[%emt 0:00:37]} gxh4 {[%emt 0:00:06]} 54. Kf3 {[%emt 0:00:24]} Rd4 {[%emt 0:00:58]} 55. Ke3 {[%emt 0:00:28]} Rd1 {[%emt 0:00:04]} 56. Rc6+ {[%emt 0:00:23]} Ke5 {[%emt 0:00:45] A balanced but interesting game.   Weighted Error Value: White=0.03 (flawless) /Black=0.02 (flawless) .  Inaccurate:     	White=1     	Black=2      OK:         	White=13    	Black=31     Best:        	White=1     	Black=1      Strong:       	White=2     	---} 1/2-1/2

[Event "Baku Open 2024"]
[Site "Baku"]
[Date "2024.07.04"]
[Round "6.31"]
[White "Bizhigitov, Zhangir"]
[Black "Zhukova, Natalia"]
[Result "*"]
[ECO "C84"]
[WhiteElo "2212"]
[BlackElo "2306"]
[Annotator "RC"]
[PlyCount "33"]
[EventDate "2024.06.29"]
[EventType "swiss"]
[EventCountry "AZE"]
[SourceTitle "playchess.com"]
[Source "ChessBase"]
[SourceQuality "1"]
[TimeControl "5400+30"]

1. e4 {[%emt 0:01:12]} e5 {[%emt 0:00:10]} 2. Nf3 {[%emt 0:00:18]} Nc6 {[%emt 0:00:08]} 3. Bb5 {[%emt 0:00:41]} a6 {[%emt 1:31:42]} 4. Ba4 {[%emt 0:00:13]} Nf6 {[%emt 0:00:23]} 5. O-O {[%emt 0:00:27]} b5 {[%emt 0:00:21]} 6. Bb3 {[%emt 0:00:12]} Bb7 {[%emt 0:00:15]} 7. d3 {[%emt 0:03:20]} Be7 {[%emt 0:00:19]} 8. Nc3 {[%emt 0:03:37]} O-O {[%emt 0:00:25]} 9. a3 {[%emt 0:03:53]} Nd4 {[%emt 0:01:27]} 10. Ba2 {[%emt 0:14:30]} Nxf3+ {[%emt 0:21:51]} 11. Qxf3 {[%emt 0:02:04]} d6 {[%emt 0:00:07]} 12. Ne2 {[%emt 0:09:34]} Kh8 {[%emt 0:17:00]} 13. Ng3 {[%emt 0:03:04]} Ng8 {[%emt 0:00:10]} 14. Qe2 {[%emt 0:04:56]} Bg5 {[%emt 0:04:08]} 15. f4 {[%emt 0:01:35]} exf4 {[%emt 0:00:10]} 16. Bxf4 {[%emt 0:00:06]} Nh6 {[%emt 0:09:21]} 17. Qh5 {[%emt 0:09:07]} *

[Event "Baku Open 2024"]
[Site "Baku"]
[Date "2024.07.04"]
[Round "6.31"]
[White "Gurbanov, Ismayil"]
[Black "Khamdamova, Afruza"]
[Result "1/2-1/2"]
[ECO "C78"]
[WhiteElo "2163"]
[BlackElo "2291"]
[Annotator "TA"]
[PlyCount "100"]
[EventDate "2024.06.29"]
[EventType "swiss"]
[EventCountry "AZE"]
[SourceTitle "playchess.com"]
[Source "ChessBase"]
[SourceQuality "1"]
[TimeControl "5400+30"]

{[%evp 13,100,0,0,-6,0,6,14,-10,-1,-6,-7,-13,-9,-11,-8,-6,-2,0,0,0,0,-44,-26,-22,0,0,117,111,105,109,112,102,119,100,185,125,114,120,138,115,113,111,112,110,118,99,99,99,112,99,100,0,0,0,0,8,8,51,52,0,0,0,16,0,0,0,0,0,0,0,0,0,0,0,0,0,0,0,0,0,0,0,0,0,0,0,0,0,0]} 1. e4 {[%emt 0:00:15]} e5 {[%emt 0:01:03]} 2. Nf3 {[%emt 0:00:03]} Nc6 {[%emt 0:00:26]} 3. Bb5 {[%emt 0:00:04]} a6 {[%emt 0:00:10]} 4. Ba4 {[%emt 0:00:03]} Nf6 {[%emt 0:00:06]} 5. d3 {[%emt 0:00:03]} b5 {[%emt 0:01:09]} 6. Bb3 {[%emt 0:00:04]} Bc5 {[%emt 0:01:06]} 7. O-O {[%emt 0:01:05]} d6 {[%emt 0:00:37]} 8. a3 {[%emt 0:00:04]} h6 {[%emt 0:01:06]} 9. Nc3 {[%emt 0:01:35]} Bg4 {[%emt 0:08:18]} 10. Be3 {[%emt 0:03:50]} Nd4 {[%emt 0:04:43]} 11. Bxd4 {[%emt 0:00:06]} Bxd4 {[%emt 0:00:04]} 12. h3 {[%emt 0:00:34]} Bxc3 {[%emt 0:05:16]} 13. bxc3 {[%emt 0:00:34]} Bd7 {[%emt 0:00:04]} 14. a4 {[%emt 1:29:10]} O-O {[%emt 1:13:22]} 15. axb5 {[%emt 0:00:00]} axb5 {[%emt 0:00:00]} 16. Rxa8 {[%emt 0:00:00]} Qxa8 {[%emt 0:00:00]} 17. Qa1 {[%emt 0:01:30]} Qc8 {[%emt 0:01:30]} 18. c4 {[%emt 0:00:00]} Nh5 {[%emt 0:00:00]} 19. cxb5 {[%emt 0:00:00]} Bxb5 {[%emt 0:00:00] [#]} (19... Nf4 $11 {hält das Gleichgewicht.} 20. Qa6 Qd8 (20... Bxh3 21. Qxc8 Ne2+ 22. Kh2 $17)) 20. Nxe5 $1 $16 {[%emt 0:00:00][%mdl 512] Weiß steht aktiver.} Nf4 {[%emt 0:00:00]} (20... dxe5 $2 {zu gefräßig.} 21. Qxe5 Bxd3 22. cxd3 $16) 21. Ng4 {[%emt 0:00:00]} Bd7 {[%emt 0:00:00]} 22. Qd1 {[%emt 0:00:00] Wehrt Ne2+ ab} Qd8 {[%emt 0:00:00]} 23. Ne3 {[%emt 0:00:00]} (23. Kh2 {ist vielschichtiger.} Qh4 24. Ne3 Be6 25. Bc4) 23... h5 {[%emt 0:00:00]} (23... Be6 $16 {kämpft weiter.}) 24. Nd5 {[%emt 0:00:00]} ({Vorzuziehen ist} 24. g3 $18 Nxh3+ 25. Kh2) 24... Nxd5 {[%emt 0:00:00]} 25. Bxd5 {[%emt 0:00:00]} Qh4 {[%emt 0:00:00]} 26. Qf3 {[%emt 0:00:00]} Be6 {[%emt 0:00:00]} 27. Bxe6 {[%emt 0:00:00]} fxe6 {[%emt 0:00:00][%mdl 4096] Endspiel. KQR-KQR} 28. Qe3 {[%emt 0:00:00]} e5 {[%emt 0:00:00]} 29. Kh2 {[%emt 0:00:00]} Qf6 {[%emt 0:00:00]} 30. Qe2 {[%emt 0:00:00]} Qg5 {[%emt 0:00:00]} 31. g3 {[%emt 0:00:00]} h4 {[%emt 0:00:00]} 32. Kg2 {[%emt 0:00:00]} (32. Ra1 $16) 32... hxg3 $11 {[%emt 0:00:00]} 33. fxg3 {[%emt 0:00:00]} Rxf1 {[%emt 0:00:17]} 34. Qxf1 {[%emt 0:00:00] KQ-KQ} Qd2+ $1 {[%emt 0:00:11]} 35. Qf2 {[%emt 0:00:00]} Qd1 {[%emt 0:00:20]} 36. g4 {[%emt 0:00:00]} (36. h4 $14) 36... g5 {[%emt 0:08:42] Die Stellung ist ausgeglichen.} 37. Kg3 {[%emt 0:00:00]} Kg7 {[%emt 0:00:00]} 38. h4 {[%emt 0:00:00]} gxh4+ {[%emt 0:00:00]} 39. Kxh4 {[%emt 0:00:00]} Qh1+ {[%emt 0:00:00]} 40. Kg3 {[%emt 0:00:00]} Qc1 {[%emt 0:00:00]} 41. Kg2 {[%emt 0:00:00]} Qd1 {[%emt 0:00:00]} 42. g5 {[%emt 0:00:00] Qf6+ wäre nun fies.} Qg4+ {[%emt 0:00:00]} 43. Qg3 {[%emt 0:00:00]} Qe2+ {[%emt 0:00:00]} 44. Kh3 {[%emt 0:00:00]} Qh5+ {[%emt 0:00:00]} 45. Qh4 {[%emt 0:00:00]} Qf3+ {[%emt 0:00:00]} 46. Kh2 {[%emt 0:00:00] Qh6+ ist eine echte Drohung.} Qe2+ {[%emt 0:00:00]} 47. Kg3 {[%emt 0:00:00]} Qe3+ {[%emt 0:00:00]} 48. Kh2 {[%emt 0:00:00] Und jetzt Qh6+ wäre schön.} Qe2+ {[%emt 0:00:00]} 49. Kg3 {[%emt 0:00:00] Und Qh6+ würde nun gewinnen.} Qe3+ {[%emt 0:00:00]} 50. Kh2 {[%emt 0:00:00] Schwarz muss nun Qh6+ beachten.} Qe2+ {[%emt 0:00:00] Schwarz hat sich erfolgreich gewehrt.   Gewichteter Fehlerwert: Weiß=0.11 (sehr präzise) /Schwarz=0.10 (sehr präzise) .  Fehler:       	Weiß=3     	Schwarz=2     Ungenau:       	Weiß=1     	---        OK:         	Weiß=14    	Schwarz=18    Bester:       	Weiß=1     	Schwarz=4     Stark:        	---       	Schwarz=1     Brilliant:      	Weiß=1     	---} 1/2-1/2

[Event "Baku Open 2024"]
[Site "Baku"]
[Date "2024.07.04"]
[Round "6.32"]
[White "Bizhigitov, Zhangir"]
[Black "Zhukova, Natalia"]
[Result "1/2-1/2"]
[ECO "C84"]
[WhiteElo "2212"]
[BlackElo "2306"]
[Annotator "RC"]
[PlyCount "216"]
[EventDate "2024.06.29"]
[EventType "swiss"]
[EventCountry "AZE"]
[SourceTitle "playchess.com"]
[Source "ChessBase"]
[SourceQuality "1"]
[TimeControl "5400+30"]

1. e4 {[%emt 0:01:12]} e5 {[%emt 0:00:10]} 2. Nf3 {[%emt 0:00:18]} Nc6 {[%emt 0:00:08]} 3. Bb5 {[%emt 0:00:41]} a6 {[%emt 0:00:14]} 4. Ba4 {[%emt 0:00:13]} Nf6 {[%emt 0:00:23]} 5. O-O {[%emt 0:00:27]} b5 {[%emt 0:00:21]} 6. Bb3 {[%emt 0:00:12]} Bb7 {[%emt 0:00:15]} 7. d3 {[%emt 0:03:20]} Be7 {[%emt 0:00:19]} 8. Nc3 {[%emt 0:03:37]} O-O {[%emt 0:00:25]} 9. a3 {[%emt 0:03:53]} Nd4 {[%emt 0:01:27]} 10. Ba2 {[%emt 0:14:30]} Nxf3+ {[%emt 0:21:51]} 11. Qxf3 {[%emt 0:02:04]} d6 {[%emt 0:00:07]} 12. Ne2 {[%emt 0:09:34]} Kh8 {[%emt 0:17:00]} 13. Ng3 {[%emt 0:03:04]} Ng8 {[%emt 0:00:10]} 14. Qe2 {[%emt 0:04:56]} Bg5 {[%emt 0:04:08]} 15. f4 {[%emt 0:01:35]} exf4 {[%emt 0:00:10]} 16. Bxf4 {[%emt 0:00:06]} Nh6 {[%emt 0:09:21]} 17. Qh5 {[%emt 0:09:07]} Bxf4 {[%emt 0:04:01]} 18. Rxf4 {[%emt 0:00:47]} Qe8 {[%emt 0:04:01]} 19. Raf1 {[%emt 0:06:27]} f6 {[%emt 0:00:33]} 20. Qf3 {[%emt 0:01:47]} Qe7 {[%emt 0:08:12]} 21. Qf2 {[%emt 0:07:02]} Rae8 {[%emt 0:02:11]} 22. c3 {[%emt 0:03:02]} c5 {[%emt 0:07:21]} 23. Rh4 {[%emt 0:04:51]} Bc8 {[%emt 0:02:11]} 24. Rf4 {[%emt 0:04:16]} Be6 {[%emt 0:01:03]} 25. Bb1 {[%emt 0:03:30]} Ng4 {[%emt 0:03:48]} 26. Qe2 {[%emt 0:00:41]} Ne5 {[%emt 0:00:06]} 27. Nf5 {[%emt 0:01:00]} Bxf5 {[%emt 0:00:50]} 28. Rxf5 {[%emt 0:00:11]} g6 {[%emt 0:04:54]} 29. R5f4 {[%emt 0:00:53]} Kg7 {[%emt 0:03:07]} 30. Ba2 {[%emt 0:02:00]} g5 {[%emt 0:02:49]} 31. Rf5 {[%emt 0:01:50]} Ng6 {[%emt 0:00:02]} 32. Qg4 {[%emt 0:01:55]} Qa7 {[%emt 0:04:00]} 33. Kh1 {[%emt 0:01:24]} Nh4 {[%emt 0:00:46]} 34. R5f2 {[%emt 0:02:25]} Ng6 {[%emt 0:00:09]} 35. Bd5 {[%emt 0:01:12]} Re5 {[%emt 0:00:50]} 36. b4 {[%emt 0:01:12]} Ne7 {[%emt 0:00:33]} 37. Ba2 {[%emt 0:00:49]} Ng6 {[%emt 0:00:02]} 38. g3 {[%emt 0:00:51]} a5 {[%emt 0:00:48]} 39. bxa5 {[%emt 0:00:57]} Re7 {[%emt 0:00:22]} 40. Qf5 {[%emt 0:01:36]} Qxa5 {[%emt 0:00:17]} 41. Qd5 {[%emt 0:00:22]} Qd8 {[%emt 0:00:57]} 42. d4 {[%emt 0:00:20]} Rc7 {[%emt 0:00:35]} 43. Qe6 {[%emt 0:00:51]} Re7 {[%emt 0:00:24]} 44. Qf5 {[%emt 0:00:47]} Qa8 {[%emt 0:00:25]} 45. dxc5 {[%emt 0:00:33]} dxc5 {[%emt 0:00:01]} 46. Qxc5 {[%emt 0:00:06]} Qxe4+ {[%emt 0:00:07]} 47. Kg1 {[%emt 0:00:03]} Qe3 {[%emt 0:01:20]} 48. Qxb5 {[%emt 0:01:10]} Ne5 {[%emt 0:00:38]} 49. Qe2 {[%emt 0:00:35]} Qxc3 {[%emt 0:00:18]} 50. Bb1 {[%emt 0:00:26]} Qxa3 {[%emt 0:00:26]} 51. Qh5 {[%emt 0:00:47]} Ng6 {[%emt 0:00:16]} 52. Qf3 {[%emt 0:00:21]} Qc5 {[%emt 0:00:55]} 53. Qf5 {[%emt 0:00:19]} Re5 {[%emt 0:00:14]} 54. Qd7+ {[%emt 0:00:16]} Rf7 {[%emt 0:00:14]} 55. Qd2 {[%emt 0:00:25]} Qb6 {[%emt 0:01:02]} 56. Kh1 {[%emt 0:00:29]} Rf8 {[%emt 0:00:26]} 57. Qd7+ {[%emt 0:00:59]} Re7 {[%emt 0:00:05]} 58. Qf5 {[%emt 0:00:12]} Qd4 {[%emt 0:00:23]} 59. Qd3 {[%emt 0:00:46]} Qa7 {[%emt 0:00:08]} 60. Qf5 {[%emt 0:00:34]} Re5 {[%emt 0:00:40]} 61. Qd3 {[%emt 0:00:20]} Qe7 {[%emt 0:00:28]} 62. Bc2 {[%emt 0:00:37]} Rd8 {[%emt 0:00:23]} 63. Qf3 {[%emt 0:00:09]} Rd6 {[%emt 0:00:12]} 64. Bxg6 {[%emt 0:00:54]} hxg6 {[%emt 0:00:28]} 65. Rb2 {[%emt 0:00:21]} Rd7 {[%emt 0:01:49]} 66. Rbf2 {[%emt 0:00:39]} Rf5 {[%emt 0:00:28]} 67. Qg2 {[%emt 0:00:24]} Rxf2 {[%emt 0:00:27]} 68. Qxf2 {[%emt 0:00:15]} g4 {[%emt 0:00:30]} 69. Re1 {[%emt 0:00:40]} Qd6 {[%emt 0:00:17]} 70. Qe2 {[%emt 0:00:13]} f5 {[%emt 0:00:50]} 71. Qe8 {[%emt 0:01:06]} Qd5+ {[%emt 0:00:31]} 72. Kg1 {[%emt 0:00:04]} Qc5+ {[%emt 0:00:23]} 73. Kh1 {[%emt 0:00:24]} Qc6+ {[%emt 0:00:22]} 74. Kg1 {[%emt 0:00:07]} Qc5+ {[%emt 0:00:39]} 75. Kh1 {[%emt 0:00:22]} Ra7 {[%emt 0:00:38]} 76. Rd1 {[%emt 0:00:45]} Re7 {[%emt 0:00:11]} 77. Qd8 {[%emt 0:00:41]} Qb4 {[%emt 0:00:32]} 78. Kg1 {[%emt 0:00:41]} Qe4 {[%emt 0:00:17]} 79. Qd4+ {[%emt 0:00:57]} Qxd4+ {[%emt 0:00:03]} 80. Rxd4 {[%emt 0:00:02]} Re2 {[%emt 0:00:13]} 81. Rd6 {[%emt 0:00:13]} Ra2 {[%emt 0:00:16]} 82. Rb6 {[%emt 0:00:16]} Kh6 {[%emt 0:00:10]} 83. Rc6 {[%emt 0:00:20]} Kg7 {[%emt 0:00:54]} 84. Rb6 {[%emt 0:00:13]} Kf7 {[%emt 0:00:14]} 85. Rc6 {[%emt 0:00:04]} Re2 {[%emt 0:00:19]} 86. Ra6 {[%emt 0:00:21]} Re6 {[%emt 0:00:36]} 87. Ra2 {[%emt 0:00:20]} Kf6 {[%emt 0:00:09]} 88. Kg2 {[%emt 0:00:13]} g5 {[%emt 0:00:24]} 89. h3 {[%emt 0:00:52]} gxh3+ {[%emt 0:00:10]} 90. Kxh3 {[%emt 0:00:04]} Rd6 {[%emt 0:00:42]} 91. Kg2 {[%emt 0:00:25]} Rd3 {[%emt 0:01:05]} 92. Re2 {[%emt 0:01:17]} Rd4 {[%emt 0:01:00]} 93. Kf2 {[%emt 0:00:53]} Kg6 {[%emt 0:00:40]} 94. Re5 {[%emt 0:01:38]} Rd3 {[%emt 0:00:10]} 95. Ra5 {[%emt 0:00:22]} Rb3 {[%emt 0:00:31]} 96. Rc5 {[%emt 0:00:20]} Rb2+ {[%emt 0:00:18]} 97. Kf1 {[%emt 0:00:23]} Ra2 {[%emt 0:01:42]} 98. Rb5 {[%emt 0:00:04]} Ra3 {[%emt 0:00:30]} 99. Kf2 {[%emt 0:00:06]} Kh5 {[%emt 0:00:24]} 100. Rxf5 {[%emt 0:00:37]} Kg4 {[%emt 0:00:06]} 101. Rb5 {[%emt 0:00:10]} Rf3+ {[%emt 0:00:20]} 102. Kg2 {[%emt 0:00:03]} Rxg3+ {[%emt 0:00:04]} 103. Kh2 {[%emt 0:00:04]} Ra3 {[%emt 0:00:21]} 104. Kg2 {[%emt 0:00:25]} Ra2+ {[%emt 0:00:07]} 105. Kg1 {[%emt 0:00:03]} Kh4 {[%emt 0:00:08]} 106. Rb3 {[%emt 0:00:07]} g4 {[%emt 0:00:06]} 107. Rc3 {[%emt 0:00:06]} g3 {[%emt 0:00:09]} 108. Rc8 {[%emt 0:00:07]} Ra1+ {[%emt 0:00:45]} 1/2-1/2

[Event "Baku Open 2024"]
[Site "Baku"]
[Date "2024.07.04"]
[Round "6.32"]
[White "Gurbanov, Ismayil"]
[Black "Khamdamova, Afruza"]
[Result "*"]
[ECO "C78"]
[WhiteElo "2163"]
[BlackElo "2291"]
[Annotator "RC"]
[PlyCount "41"]
[EventDate "2024.06.29"]
[EventType "swiss"]
[EventCountry "AZE"]
[SourceTitle "playchess.com"]
[Source "ChessBase"]
[SourceQuality "1"]
[TimeControl "5400+30"]

1. e4 {[%emt 0:00:15]} e5 {[%emt 0:01:03]} 2. Nf3 {[%emt 0:00:03]} Nc6 {[%emt 0:00:26]} 3. Bb5 {[%emt 0:00:04]} a6 {[%emt 0:00:10]} 4. Ba4 {[%emt 0:00:03]} Nf6 {[%emt 0:00:06]} 5. d3 {[%emt 0:00:03]} b5 {[%emt 0:01:09]} 6. Bb3 {[%emt 0:00:04]} Bc5 {[%emt 0:01:06]} 7. O-O {[%emt 0:01:05]} d6 {[%emt 0:00:37]} 8. a3 {[%emt 0:00:04]} h6 {[%emt 0:01:06]} 9. Nc3 {[%emt 0:01:35]} Bg4 {[%emt 0:08:18]} 10. Be3 {[%emt 0:03:50]} Nd4 {[%emt 0:04:43]} 11. Bxd4 {[%emt 0:00:06]} Bxd4 {[%emt 0:00:04]} 12. h3 {[%emt 0:00:34]} Bxc3 {[%emt 0:05:16]} 13. bxc3 {[%emt 0:00:34]} Bd7 {[%emt 0:00:04]} 14. a4 {[%emt 0:11:04]} O-O {[%emt 0:10:36]} 15. axb5 {[%emt 0:00:00]} axb5 {[%emt 0:00:00]} 16. Rxa8 {[%emt 0:00:00]} Qxa8 {[%emt 0:00:00]} 17. Qa1 {[%emt 0:01:30]} Qc8 {[%emt 0:00:00]} 18. c4 {[%emt 0:00:00]} Nh5 {[%emt 0:00:00]} 19. cxb5 {[%emt 0:00:00]} Bxb5 {[%emt 0:00:00]} 20. Nxe5 {[%emt 0:00:00]} Nf4 {[%emt 0:00:00]} 21. Ng4 {[%emt 0:00:00]} *